Workbook

Sheet Açıklamalar
B1: ► | C1: AMAÇ :
B2: Bu form, Enerji ve Tabii Kaynaklar Bakanlığı tarafından 5627 Sayılı Enerji Verimliliği Kanunu uyarınca enerji yoğun sektörlerde yürütülen enerji yönetimi, izleme, analiz ve projeksiyon çalışmaları kapsamında NACE Rev.2.0 sektör dağılımına uygun olarak 13. Tekstil Ürünlerinin İmalatı Sektöründe faaliyet gösteren ve yıllık ortalama enerji tüketimi 1.000 TEP (Ton Eşdeğer Petrol) tüketimi olan endüstriyel işletmelerde yıllık kıyaslama raporlarının oluşturulabilmesi için gerekli olan verilerin toplanması amacıyla hazırlanmıştır.
B6: ► | C6: HEDEF :
B7: Bu formlar yardımıyla toplanacak veriler yardımıyla spesifik enerji tüketimine yönelik göstergeler oluşturulacak olup bu göstergeler kullanılarak sektöre özel yıllık kıyaslama raporu hazırlanacaktır. Kıyaslama raporları yardımıyla elde edilebilecek kazanımlar aşağıda özetlenmiştir;
C10: 1) İşletmenizin durumunu sektördeki diğer işletmelerle kıyaslama imkanı sunar
C11: 2) İşletmenizin geçmiş yıllardaki verileri ile mevcut durumunun kıyaslanmasını sağlar
C12: 3) Sektördeki en iyi ve/veya ortalama değerlere göre makul hedefler belirlemenize yardımcı olur
C13: 4) Etkili bir enerji yönetimi sistemi kurmanızda yardımcı olur
C14: 5) Enerji tüketiminin yoğunlukla hangi proseslerde tüketildiğini görmenize yardımcı olarak odak noktanızı belirler
C15: 6) Tasarruf potansiyelinizi anlamanıza yardımcı olarak israfı önlemenizi sağlar
C16: 7) Verimlilik artışı sağlayan teknolojilerin etkileri hakkında fikir sahibi olmanızı sağlar
C17: 8) Birim üretim başına enerji yatırım maliyetlerinizi optimize etmenize yardımcı olur
B18: ► | C18: GİZLİLİK İLKESİ :
B19: 5627 Sayılı Enerji Verimliliği Kanunu uyarınca Bakanlığımız, sağladığı bilgilerden gerçek ve tüzel kişilerin ticarî ilişkilerine zarar verecek bilgi ve belgelerin gizliliğine riayet edecektir. Raporda işletmeler özel kodlamalarla tanımlanacak kişisel veriler gizli tutulacaktır. Oluşturulacak raporlar çalışmaya katılan işletmeler haricinde hiçbir gerçek veya tüzel kişilerle paylaşılmayacaktır.
B22: ► | C22: KULLANICI SORUMLULUĞU :
B23: Endüstriyel işletme yönetimleri, görevlendirdikleri enerji yöneticisi aracılığıyla doldurulan bu formun eksiksiz ve doğru bir şekilde her yıl Mart ayı sonuna kadar Bakanlığımıza bildirilmesinden sorumludur. Gerekli görülmesi halinde Bakanlığın yerinde yapacağı incelemelere imkan sağlanacaktır.
B25: ► | C25: SORUMLULUK REDDİ :
B26: Bakanlık toplanan verilere dayalı olarak yıllık sektörel raporlar/göstergeler oluşturabilir. Bakanlık söz konusu raporun kapsam ve tasarımını önceden bildirimde bulunmaksızın güncelleme/değiştirebilme yetkisine sahiptir. Raporun basımı, çoğaltılması ve çalışmaya katılan yönetimlerle paylaşma yetkisi tamamen Bakanlığa aittir. Raporun kısmen veya tamamen çoğaltılması, alıntı yapılması, üçüncü taraflarla paylaşılması gibi hususlar Bakanlık'tan alınacak izne tabidir. Bakanlık raporlarda açıklanan herhangi bir bilgi, belge, ürün veya sürecin doğruluğu, tamlığı veya yararlılığına ilişkin, aleni veya zımni olarak, herhangi bir taahhüt sunmaz veya yasal bir yükümlülük veya sorumluluk üstlenmez veya bunların kullanımının özel hakları ihlal etmediğini beyan etmez.
B31: ► | C31: DİKKAT EDİLECEK BAZI HUSUSLAR :
B32: 1) Formu dolduran işletme yönetimleri Bakanlığımıza iletmek için tekstilsektoru@enerji.gov.tr ve portal.bilgi@enerji.gov.tr e-posta adreslerini kullanabilirler. Bakanlık tarafından talep edilmedikçe formun ayrıca ıslak imzalı olarak posta yoluyla gönderilmesine gerek yoktur.
B34: 2) Formda kullanıcı tarafından veri girişi yapılacak alanlar kırmızı, seçim yapılması gereken alanlar ise yeşil renkte hazırlanmıştır. Diğer alanların yapısını değiştirecek müdahalelerde bulunmayınız.
B36: 3) Formda talep edilen bilgiler için bildirim yılının 1 Ocak - 31 Aralık tarih aralığı esas alınacaktır. Örneğin toplu alım yapılarak depolanmış hammadde, yakıt vs bulunan işletmeler belirtilen dönem içerisindeki üretim girdisi miktarını bildireceklerdir.
B38: 4) Bu formda yer alan referans enerji tüketimi bildirimi alanı ilk defa bildirim yapacaklar ve 1000 TEP altında tüketimi olanlar için doldurulması zorunlu alandır. Daha önce enver portalı üzerinden bildirimde bulunmuş olanların tekrar doldurmalarına gerek yoktur.
B40: 5) Gerektiği hallerde Bakanlık tarafından bu formla birlikte yayınlanmış olan tep (ton eşdeğer petrol) dönüşüm tablosunu kullanınınız. Ayrıca gerektiği yerlerde satır ekleme yapabilirsiniz. Bu formda TEP dönüşümü otomatik olarak hesaplanmaktadır. Ancak söz konusu tablo yardımı ile litre olarak alınan bir yakıtın ton cinsinden miktarının nasıl hesaplanabileceği, bu formda yer almayan diğer yakıt tanımları, Net sıcak su, net buhar , net atık ısı ve net elektrik enerjisi tüketimlerinin nasıl hesaplanacağı gibi detaylar açıklanmaktadır. Lütfen detaylı açıklama için kurumumuzla iletişime geçiniz.
B44: 6) Eğer bildirimde bulunan işletme sınırları içerisinde 100 MWe ve üzerinde kurulu güçle elektrik üretimi yapılabiliyor ise söz konusu üretim birimi için haricen Elektrik Üretim Tesisi Bildirim Formu doldurularak Bakanlığa iletilecektir.
B46: 7) Formun bazı bölümlerinde talep edilen bilgilerle alakalı ölçüme dayalı veri yoksa tutarlı mühendislik hesaplamalarından faydalanmanız tavsiye edilir. Bu anlamda etüt raporunuz başvurulacak ilk kaynak olacaktır. Etüt raporunu hazırlayan etüt proje uzmanı ile ilgili prosesin opereratöründen destek alınmasında fayda görülmektedir.

Sheet Ana Prosesler Akış Şeması

Sheet Genel Bilgiler
B1: ENDÜSTRİYEL İŞLETME GENEL BİLGİLERİ
B3: İŞLETME İLETİŞİM BİLGİLERİ
B4: İşletme Adı / Unvanı | K4: :
B5: İl | K5: :
B6: İlçe | K6: :
B7: İletişim Adresi | K7: :
B9: ENDÜSTRİYEL İŞLETME YÖNETİMİ VEYA SAHİBİNE İLİŞKİN BİLGİLER
B10: Adı, Soyadı | K10: :
B11: Unvanı | K11: :
B12: Telefon (İş) | K12: :
B13: e-posta Adresi | K13: :
B14: ENERJİ YÖNETİCİSİ BİLGİLERİ (Enerji Yöneticisi /Enerji Yönetim Birimi Atanması/Kurulması için ayrıca formata uygun resmi yazı gönderilecek)
B15: Adı, Soyadı | K15: :
B16: Unvanı | K16: :
B17: T.C. Kimlik Numarası | K17: :
B18: Sertifika Numarası | K18: :
B19: Telefon (İş) | K19: :
B20: Telefon (Cep) | K20: :
B21: e-posta Adresi | K21: :
B22: ENERJİ YÖNETİCİSİNİN BAĞLI OLDUĞU ŞİRKET BİLGİLERİ (VARSA) (Bu alan dışarıdan hizmet alımı yapılarak enerji yöneticiliği karşılanıyorsa doldurulacaktır.)
B23: Şirketin Adı/Unvanı | K23: :
B24: İletişim Adresi | K24: :
B26: Telefon | K26: :
B27: Faks | K27: :
B28: e-posta Adresi | K28: :
B29: İŞLETME KARAKTERİSTİKLERİ
B30: Ana Faaliyet Alanı | K30: : | L30: Seçiniz
B31: Sanayi Sicil Belge No | K31: :
B32: Vergi Kimlik No | K32: :
B33: Bağlı Bulunduğu OSB (Varsa) | K33: :
B34: Kuruluş Yılı | K34: :
B35: Çalışan Sayısı | K35: :
B36: Üretimden Gelen Net Satış Hasılatı (TL/Yıl) | K36: :
B37: Çalışma Süresi (Saat/Yıl) | K37: :
B38: Kapasite Kullanım Oranı (%) | K38: :
B39: ISO 50001 Belgesi | K39: : | L39: Seçiniz | Q39: Veriliş Tarihi (Varsa)
B40: Etüt Raporu Durumu | K40: : | L40: Seçiniz | Q40: Hazırlanış Tarihi (Varsa)

Sheet Referans Enerji Tüketimi
B1: ► | C1: Formu doğru bir şekilde doldurabilmek için Lütfen "TEP Dönüşümü ve Birim Dönüştürücü" excel dosyasını kullanınız.
B2: ► | C2: Sıcak Su, Buhar, Atık Isı ve Elektrik üretmek amacıyla yapılan enerji tüketimi katı,sıvı ve gaz yakıtlar içerisinde girilecektir. Mükerrer giriş olmaması amacıyla varlık içerisinde gerçekleşen enerji üretimi bu tüketim formunda ayrıca sorulmamıştır. Enerji üretiminize ilişkin detay bilgiler Enerji Üretimi sekmesinde sorulacaktır.
B5: Tüketilen Yakıt | H5: Isıl Değeri (kcal / Orj Birim) | L5: Orijinal Birimi | O5: Tüketilen Miktar (2017) | S5: Tüketilen Miktar (2018) | W5: Tüketilen Miktar (2019) | AA5: Referans Tüketim (TEP/Yıl)
B7: A) KATI YAKITLAR | W7: Ara Toplam | AA7: =SUM(AA8:AE16) -> 0
B8: Taş Kömürü | H8: 6100000 | L8: Ton/Yıl | AA8: =IF(AND(O8=0,S8=0,W8=0),0,(AVERAGE(O8:Z8)*H8)/10000000) -> 0
B9: Antrasit | H9: 6900000 | L9: Ton/Yıl | AA9: =IF(AND(O9=0,S9=0,W9=0),0,(AVERAGE(O9:Z9)*H9)/10000000) -> 0
B10: Kok Kömürü | H10: 7200000 | L10: Ton/Yıl | AA10: 0
B11: Linyit (Teshin & Sanayi) | H11: 3000000 | L11: Ton/Yıl | AA11: 0
B12: Petrokok | H12: 7600000 | L12: Ton/Yıl | AA12: 0
B13: Pelet | H13: 4100000 | L13: Ton/Yıl | AA13: 0
A14: DİĞER | AA14: 0
AA15: 0
AA16: 0
B17: B) SIVI YAKITLAR (Litre - Ton dönüşümü için TEP dönüşümü tablosundaki açıklamaları dikkate alınız.) | W17: Ara Toplam | AA17: =SUM(AA18:AE25) -> 0
B18: Motorin | H18: 10200000 | L18: Ton/Yıl | AA18: =IF(AND(O18=0,S18=0,W18=0),0,(AVERAGE(O18:Z18)*H18)/10000000) -> 0
B19: Benzin | H19: 10400000 | L19: Ton/Yıl | AA19: =IF(AND(O19=0,S19=0,W19=0),0,(AVERAGE(O19:Z19)*H19)/10000000) -> 0
B20: Fuel-Oil No:5 | H20: 10025000 | L20: Ton/Yıl | AA20: 0
B21: Kerosen | H21: 10500000 | L21: Ton/Yıl | AA21: 0
B22: Nafta | H22: 10400000 | L22: Ton/Yıl | AA22: 0
A23: DİĞER | AA23: 0
AA24: 0
AA25: 0
B26: C) GAZ YAKITLAR(15 ͦ C ve 1 atm basınç altındaki normal metreküp değeri kullanılacaktır) | W26: Ara Toplam | AA26: =SUM(AA27:AE33) -> 0
B27: Doğal Gaz | H27: 8250 | L27: m³/Yıl | AA27: =IF(AND(O27=0,S27=0,W27=0),0,(AVERAGE(O27:Z27)*H27)/10000000) -> 0
B28: LPG | H28: 26000 | L28: m³/Yıl | AA28: =IF(AND(O28=0,S28=0,W28=0),0,(AVERAGE(O28:Z28)*H28)/10000000) -> 0
B29: Asetilen | H29: 14230 | L29: m³/Yıl | AA29: 0
B30: Kok Gazı | H30: 4028 | L30: m³/Yıl | AA30: 0
A31: DİĞER | AA31: 0
AA32: 0
AA33: 0
B34: D) NET SICAK SU TÜKETİMİ (Satın Alınan + Yenilenebilir Enerji Kaynaklarından Üretilen - Satılan )
B35: Sıcak Su | H35: 1 | L35: kcal/Yıl | AA35: =IF(AND(O35=0,S35=0,W35=0),0,(AVERAGE(O35:Z35)*H35)/10000000) -> 0
B36: E) NET BUHAR TÜKETİMİ (Satın Alınan + Yenilenebilir Enerji Kaynaklarından Üretilen - Satılan )
B37: Kızgın Buhar | H37: 1 | L37: kcal/Yıl | AA37: =IF(AND(O37=0,S37=0,W37=0),0,(AVERAGE(O37:Z37)*H37)/10000000) -> 0
B38: F) NET ATIK ISI TÜKETİMİ (Satın Alınan + Yenilenebilir Enerji Kaynaklarından Üretilen - Satılan )
B39: Atık Isı | H39: 1 | L39: kcal/Yıl | AA39: =IF(AND(O39=0,S39=0,W39=0),0,(AVERAGE(O39:Z39)*H39)/10000000) -> 0
B40: G) NET ELEKTRİK TÜKETİMİ (Satın Alınan + Yenilenebilir Enerji Kaynaklarından Üretilen - Satılan )
B41: Elektrik | H41: 860 | L41: kWh/Yıl | AA41: =IF(AND(O41=0,S41=0,W41=0),0,(AVERAGE(O41:Z41)*H41)/10000000) -> 0
O42: TOPLAM | AA42: =AA41+AA39+AA37+AA35+AA26+AA17+AA7 -> 0

Sheet 2020 Enerji Tüketim Bildirimi
B1: ► | C1: Formu doğru bir şekilde doldurabilmek için Lütfen "TEP Dönüşümü ve Birim Dönüştürücü" excel dosyasını kullanınız.
B2: ► | C2: Sıcak Su, Buhar, Atık Isı ve Elektrik üretmek amacıyla yapılan enerji tüketimi katı,sıvı ve gaz yakıtlar içerisinde girilecektir. Mükerrer giriş olmaması amacıyla varlık içerisinde gerçekleşen enerji üretimi bu tüketim formunda ayrıca sorulmamıştır. Enerji üretiminize ilişkin detay bilgiler Enerji Üretimi sekmesinde sorulacaktır.
B5: Tüketilen Yakıt | I5: Isıl Değeri (kcal / Orj Birim) | M5: Orijinal Birimi | P5: TÜKETİLEN ENERJİ MİKTARI (2020) | AB5: Enerji Tüketimi (TEP/Yıl)
B7: A) KATI YAKITLAR | X7: Ara Toplam | AB7: =SUM(AB8:AF16) -> 0
B8: Taş Kömürü | I8: 6100000 | M8: Ton/Yıl | AB8: =IF(P8=0,0,(P8*I8)/10000000) -> 0
B9: Antrasit | I9: 6900000 | M9: Ton/Yıl | AB9: =IF(P9=0,0,(P9*I9)/10000000) -> 0
B10: Kok Kömürü | I10: 7200000 | M10: Ton/Yıl | AB10: 0
B11: Linyit (Teshin & Sanayi) | I11: 3000000 | M11: Ton/Yıl | AB11: 0
B12: Petrokok | I12: 7600000 | M12: Ton/Yıl | AB12: 0
B13: Pelet | I13: 4100000 | M13: Ton/Yıl | AB13: 0
A14: DİĞER | AB14: 0
AB15: 0
AB16: 0
B17: B) SIVI YAKITLAR (Litre - Ton dönüşümü için TEP dönüşümü tablosundaki açıklamaları dikkate alınız.) | X17: Ara Toplam | AB17: =SUM(AB18:AF25) -> 0
B18: Motorin | I18: 10200000 | M18: Ton/Yıl | AB18: =IF(P18=0,0,(P18*I18)/10000000) -> 0
B19: Benzin | I19: 10400000 | M19: Ton/Yıl | AB19: 0
B20: Fuel-Oil No:5 | I20: 10025000 | M20: Ton/Yıl | AB20: 0
B21: Kerosen | I21: 10500000 | M21: Ton/Yıl | AB21: 0
B22: Nafta | I22: 10400000 | M22: Ton/Yıl | AB22: 0
A23: DİĞER | AB23: 0
AB24: 0
AB25: 0
B26: C) GAZ YAKITLAR(15 ͦ C ve 1 atm basınç altındaki normal metreküp değeri kullanılacaktır) | X26: Ara Toplam | AB26: =SUM(AB27:AF33) -> 0
B27: Doğal Gaz | I27: 8250 | M27: m³/Yıl | AB27: =IF(P27=0,0,(P27*I27)/10000000) -> 0
B28: LPG | I28: 26000 | M28: m³/Yıl | AB28: 0
B29: Asetilen | I29: 14230 | M29: m³/Yıl | AB29: 0
B30: Kok Gazı | I30: 4028 | M30: m³/Yıl | AB30: 0
A31: DİĞER | AB31: 0
AB32: 0
AB33: 0
B34: D) NET SICAK SU TÜKETİMİ (Satın Alınan + Yenilenebilir Enerji Kaynaklarından Üretilen - Satılan )
B35: Sıcak Su | I35: 1 | M35: kcal/Yıl | AB35: =IF(P35=0,0,(P35*I35)/10000000) -> 0
B36: E) NET BUHAR TÜKETİMİ (Satın Alınan + Yenilenebilir Enerji Kaynaklarından Üretilen - Satılan )
B37: Kızgın Buhar | I37: 1 | M37: kcal/Yıl | AB37: =IF(P37=0,0,(P37*I37)/10000000) -> 0
B38: F) NET ATIK ISI TÜKETİMİ (Satın Alınan + Yenilenebilir Enerji Kaynaklarından Üretilen - Satılan )
B39: Atık Isı | I39: 1 | M39: kcal/Yıl | AB39: =IF(P39=0,0,(P39*I39)/10000000) -> 0
B40: G) NET ELEKTRİK TÜKETİMİ (Satın Alınan + Yenilenebilir Enerji Kaynaklarından Üretilen - Satılan )
B41: Elektrik | I41: 860 | M41: kWh/Yıl | AB41: =IF(P41=0,0,(P41*I41)/10000000) -> 0
P42: TOPLAM | AB42: =AB41+AB39+AB37+AB35+AB26+AB17+AB7 -> 0

Sheet Enerji Üretimi
B2: ► | C2: Bildirim yılı içerisinde satın alınan yakıtlarla üretilen enerji miktarlarını belirtiniz. Burada yerinden üretim teknolojileri kullanılarak fabrika sahası içerisinde üretilen enerji miktarı belirtilecektir. Üretilen Elektrik miktarı ve Üretilen Isıl Enerji Miktarı ve varsa üretilen enerjinin satılan miktarı girilecektir.
B4: ► | C4: Bu form tekstil ürünlerinin imalatı ile sınırlandırıldığı için fabrika sınırları içerisinde bulunan diğer tesisler değerlendirmeye alınmayacaktır. Örneğin fabrika sınırları içerisindeki binaların kullanımı için buhar veriliyorsa bu satılan buharmış gibi değerlendirilecektir.
B7: Üretilen Enerji Tipi | I7: Isıl Değeri (kcal / Orj Birim) | M7: Orijinal Birimi | P7: Üretilen Enerji Miktarı (2020 Yılı) | AA7: Enerji Üretimi (TEP/Yıl)
B9: A) ELEKTRİK ÜRETİMİ | V9: Toplam : | AA9: =AA10+AA11+AA12+AA13-AA14 -> 0
B10: Fosil Yakıtların Yakılması ile Üretilen Elektrik | I10: 860 | M10: kWh/Yıl | AA10: =IF(P10=0,0,(P10*I10)/10000000) -> 0
B11: Yenilenebilir Enerji ile Üretilen Elektrik | I11: 860 | M11: kWh/Yıl | AA11: =IF(P11=0,0,(P11*I11)/10000000) -> 0
B12: Satın Alınan Buhar ile Üretilen Elektrik | I12: 860 | M12: kWh/Yıl | AA12: =IF(P12=0,0,(P12*I12)/10000000) -> 0
B13: Atık Isı ile Üretilen Elektrik | I13: 860 | M13: kWh/Yıl | AA13: =IF(P13=0,0,(P13*I13)/10000000) -> 0
B14: Satılan Elektrik Enerjisi | I14: 860 | M14: kWh/Yıl | AA14: =IF(P14=0,0,(P14*I14)/10000000) -> 0
B15: B) ISIL ENERJİ ÜRETİMİ | V15: Toplam : | AA15: =AA16+AA17+AA18+AA19+AA20+AA21-AA22 -> 0
B16: Fosil Yakıtların Yakılması ile Üretilen Sıcak Su | I16: 1 | M16: kcal/Yıl | AA16: =IF(P16=0,0,(P16*I16)/10000000) -> 0
B17: Fosil Yakıtların Yakılması ile Üretilen Buhar | I17: 1 | M17: kcal/Yıl | AA17: 0
B18: Yenilenebilir Enerji ile Üretilen Sıcak Su | I18: 1 | M18: kcal/Yıl | AA18: 0
B19: Yenilenebilir Enerji ile Üretilen Buhar | I19: 1 | M19: kcal/Yıl | AA19: 0
B20: Atık Isı ile Üretilen Sıcak Su | I20: 1 | M20: kcal/Yıl | AA20: 0
B21: Atık Isı ile Üretilen Buhar | I21: 1 | M21: kcal/Yıl | AA21: 0
B22: Satılan Isıl Enerji | I22: 1 | M22: kcal/Yıl | AA22: 0
B23: C) DİĞER ENERJİ ÜRETİMİ | V23: Toplam : | AA23: =AA24 -> 0
B24: Basınçlı Hava Üretimi | I24: 860 | M24: kWh/Yıl | AA24: =IF(P24=0,0,(P24*I24)/10000000) -> 0
B25: Üretilen Soğutma Suyu | I25: 1 | M25: kcal/Yıl | AA25: =IF(P25=0,0,(P25*I25)/10000000) -> 0
P26: TOPLAM : | AA26: =AA23+AA15+AA9 -> 0

Sheet Enerji Kalitesi
B2: ► | C2: Bazı işletmelerde enerji tedariğinde kesintiler ve dalgalanmalar olabilmektedir. Söz konusu durum üretim kaybına da neden olabilmektedir.
C3: Sürdürülebilir ve etkin bir enerji yönetimi için enerji kalitesinin azalmasına neden olan sebepler araştırılarak gerekli iyileştirme yatırımları yapılması gerekir.
C5: ENERJİ KALİTESİ
O6: Sayısı (Adet/Yıl) | AA6: Süresi (Saat/Yıl) | AL6: Üretim Kaybı (Ton/Yıl)
C8: Elektrik Kesintisi
C10: Elektrik Gerilimindeki Dalgalanmalar
C12: Satın Alınan Yakıtta Kesinti (Varsa)
C14: Satın Alınan Yakıtın Alt Isıl Değerindeki Dalgalanmalar (Varsa)

Sheet Üretim Girdileri
B1: ► | C1: Referans Enerji Tüketimi 1000 TEP ve üzeri olan Tekstil Ürünleri İmalatı sektöründe faaliyet gösteren işletmeler tarafından dolduracak olan bu bölümde Hammadde, Boyar Maddeler, Ana Kimyevi Maddelere ilişkin bildirim yılında tüketilen miktarlar sorulmaktadır.
B3: HAMMADDE
B4: Pamuk | M4: Ton/Yıl | Q4: :
B5: Keten | M5: Ton/Yıl | Q5: :
B6: Kendir | M6: Ton/Yıl | Q6: :
B7: Jüt | M7: Ton/Yıl | Q7: :
B8: Rami | M8: Ton/Yıl | Q8: :
B9: Sisal | M9: Ton/Yıl | Q9: :
B10: Yün | M10: Ton/Yıl | Q10: :
B11: İpek | M11: Ton/Yıl | Q11: :
B12: Tiftik | M12: Ton/Yıl | Q12: :
B13: Keşmir | M13: Ton/Yıl | Q13: :
B14: Alpaka | M14: Ton/Yıl | Q14: :
B15: Sentetik Elyaf | M15: Ton/Yıl | Q15: :
B16: Lcyra | M16: Ton/Yıl | Q16: :
B17: Polyester | M17: Ton/Yıl | Q17: :
B18: Poliamid | M18: Ton/Yıl | Q18: :
B19: Akrilik | M19: Ton/Yıl | Q19: :
B20: Diğer | M20: Ton/Yıl | Q20: :
B21: BOYAR MADDELER
B22: Reaktif | M22: Ton/Yıl | Q22: :
B23: Kükürt | M23: Ton/Yıl | Q23: :
B24: Dispers | M24: Ton/Yıl | Q24: :
B25: Bazik | M25: Ton/Yıl | Q25: :
B26: Küp (vat) | M26: Ton/Yıl | Q26: :
B27: Asit | M27: Ton/Yıl | Q27: :
B28: Direkt | M28: Ton/Yıl | Q28: :
B29: Pigment | M29: Ton/Yıl | Q29: :
B30: İndigo | M30: Ton/Yıl | Q30: :
B31: Diğer | M31: Ton/Yıl | Q31: :
B32: ANA KİMYEVİ MADDELER
B33: Kostik | M33: Ton/Yıl | Q33: :
B34: Peroksit | M34: Ton/Yıl | Q34: :
B35: Deterjan | M35: Ton/Yıl | Q35: :
B36: Islatıcılar | M36: Ton/Yıl | Q36: :
B37: Soda | M37: Ton/Yıl | Q37: :
B38: Slikat | M38: Ton/Yıl | Q38: :
B39: Haşıl | M39: Ton/Yıl | Q39: :
B40: Diğer | M40: Ton/Yıl | Q40: :
B41: SU TÜKETİMİ
B42: Yumuşak Su | M42: Ton/Yıl | Q42: :
B43: Sert Su | M43: Ton/Yıl | Q43: :

Sheet Üretilen Ürünler
B2: ► | C2: Bu bölüm ve sonrası Referans Enerji Tüketimi 1000 TEP ve üzeri olan Tekstil Ürünleri İmalatı sektöründe faaliyet gösteren işletmeler tarafından dolduracaktır.
B3: TEKSTİL ÜRÜN GRUPLARI (Birden Fazla Ürün Seçimi Yapabilirsiniz)
B4: A) İPLİK (Elyaf İplik Aşaması)
B5: Satın Alınan Miktar | M5: Seçiniz | Q5: :
B6: Fiili Üretim Miktarı | M6: Seçiniz | Q6: :
B7: Satılan Miktar | M7: Seçiniz | Q7: :
B9: B) KUMAŞ (İplik Kumaş Aşaması)
B10: DOKUMA KUMAŞ
B11: Satın Alınan Miktar | M11: Seçiniz | Q11: :
B12: Fiili Üretim Miktarı | M12: Seçiniz | Q12: :
B13: Satılan Miktar | M13: Seçiniz | Q13: :
B14: ÖRME KUMAŞ
B15: Satın Alınan Miktar | M15: Seçiniz | Q15: :
B16: Fiili Üretim Miktarı | M16: Seçiniz | Q16: :
B17: Satılan Miktar | M17: Seçiniz | Q17: :
B18: DOKUSUZ KUMAŞ (Tafting, Yapıştırmalı, nonwoven vs.)
B19: Satın Alınan Miktar | M19: Seçiniz | Q19: :
B20: Fiili Üretim Miktarı | M20: Seçiniz | Q20: :
B21: Satılan Miktar | M21: Seçiniz | Q21: :
B22: C) SATILABİLİR NİHAİ ÜRÜN (İplik / Kumaş Nihai Ürün Aşaması)
B23: EV TEKSTİL ÜRÜNLERİ
B24: Fiili Üretim Miktarı | M24: Seçiniz | Q24: :
B25: Satılan Miktar | M25: Seçiniz | Q25: :
B27: GİYİM VE AKSESUAR ÜRÜNLERİ
B28: Fiili Üretim Miktarı | M28: Seçiniz | Q28: :
B29: Satılan Miktar | M29: Seçiniz | Q29: :
B31: DİĞER (TEKNİK) TEKSTİL ÜRÜNLERİ
B32: Fiili Üretim Miktarı | M32: Seçiniz | Q32: :
B33: Satılan Miktar | M33: Seçiniz | Q33: :

Sheet Ana Prosesler
C1: PROSESLERE GÖRE AYLIK TÜKETİM DAĞILIMI
C3: Aylar | K3: Tüketilen Kaynak | W3: Birimi | AE3: İplik Ön Hazırlık | AN3: İplik Büküm | AV3: İplik Boyama | BD3: Dokumaya Hazırlık | BL3: Dokuma | BS3: Örme | BZ3: Kumaş Baskı-Boyama Terbiye İşlemleri | CK3: İkincil İşlemler | CS3: Paketleme, Depolama Sevkiyat
C5: OCAK | K5: Elektrik Tüketimi | W5: TEP/Ay | AC5: :
K7: Isıl Enerji Tüketimi | W7: TEP/Ay | AC7: :
K9: Fiili Üretim Miktarı | W9: Seçiniz | AC9: :
C11: ŞUBAT | K11: Elektrik Tüketimi | W11: TEP/Ay | AC11: :
K13: Isıl Enerji Tüketimi | W13: TEP/Ay | AC13: :
K15: Fiili Üretim Miktarı | W15: Seçiniz | AC15: :
C17: MART | K17: Elektrik Tüketimi | W17: TEP/Ay | AC17: :
K19: Isıl Enerji Tüketimi | W19: TEP/Ay | AC19: :
K21: Fiili Üretim Miktarı | W21: Seçiniz | AC21: :
C23: NİSAN | K23: Elektrik Tüketimi | W23: TEP/Ay | AC23: :
K25: Isıl Enerji Tüketimi | W25: TEP/Ay | AC25: :
K27: Fiili Üretim Miktarı | W27: Seçiniz | AC27: :
C29: MAYIS | K29: Elektrik Tüketimi | W29: TEP/Ay | AC29: :
K31: Isıl Enerji Tüketimi | W31: TEP/Ay | AC31: :
K33: Fiili Üretim Miktarı | W33: Seçiniz | AC33: :
C35: HAZİRAN | K35: Elektrik Tüketimi | W35: TEP/Ay | AC35: :
K37: Isıl Enerji Tüketimi | W37: TEP/Ay | AC37: :
K39: Fiili Üretim Miktarı | W39: Seçiniz | AC39: :
C41: TEMMUZ | K41: Elektrik Tüketimi | W41: TEP/Ay | AC41: :
K43: Isıl Enerji Tüketimi | W43: TEP/Ay | AC43: :
K45: Fiili Üretim Miktarı | W45: Seçiniz | AC45: :
C47: AĞUSTOS | K47: Elektrik Tüketimi | W47: TEP/Ay | AC47: :
K49: Isıl Enerji Tüketimi | W49: TEP/Ay | AC49: :
K51: Fiili Üretim Miktarı | W51: Seçiniz | AC51: :
C53: EYLÜL | K53: Elektrik Tüketimi | W53: TEP/Ay | AC53: :
K55: Isıl Enerji Tüketimi | W55: TEP/Ay | AC55: :
K57: Fiili Üretim Miktarı | W57: Seçiniz | AC57: :
C59: EKİM | K59: Elektrik Tüketimi | W59: TEP/Ay | AC59: :
K61: Isıl Enerji Tüketimi | W61: TEP/Ay | AC61: :
K63: Fiili Üretim Miktarı | W63: Seçiniz | AC63: :
C65: KASIM | K65: Elektrik Tüketimi | W65: TEP/Ay | AC65: :
K67: Isıl Enerji Tüketimi | W67: TEP/Ay | AC67: :
K69: Fiili Üretim Miktarı | W69: Seçiniz | AC69: :
C71: ARALIK | K71: Elektrik Tüketimi | W71: TEP/Ay | AC71: :
K73: Isıl Enerji Tüketimi | W73: TEP/Ay | AC73: :
K75: Fiili Üretim Miktarı | W75: Seçiniz | AC75: :

Sheet Ana Ekipmanlar - Fırın
B3: Fırın Adı / Marka / Model | J3: Fırın Tipi | P3: Fırın Yaşı | U3: Isı Geri Kazanımı | Z3: Fırın Isıl Verimi (%) | AE3: Üretim Kapasitesi (Ton/Yıl) | AJ3: Fiili Üretim Miktarı (Ton/Yıl) | AO3: Elektrik Tüketimi (TEP/Yıl) | AS3: Yakıt Tüketimi (TEP/Yıl)
J5: Seçiniz | P5: Seçiniz | U5: Seçiniz
J6: Seçiniz | P6: Seçiniz | U6: Seçiniz
J7: Seçiniz | P7: Seçiniz | U7: Seçiniz
J8: Seçiniz | P8: Seçiniz | U8: Seçiniz
J9: Seçiniz | P9: Seçiniz | U9: Seçiniz
J10: Seçiniz | P10: Seçiniz | U10: Seçiniz
J11: Seçiniz | P11: Seçiniz | U11: Seçiniz
J12: Seçiniz | P12: Seçiniz | U12: Seçiniz
J13: Seçiniz | P13: Seçiniz | U13: Seçiniz
J14: Seçiniz | P14: Seçiniz | U14: Seçiniz
J15: Seçiniz | P15: Seçiniz | U15: Seçiniz
J16: Seçiniz | P16: Seçiniz | U16: Seçiniz
J17: Seçiniz | P17: Seçiniz | U17: Seçiniz
J18: Seçiniz | P18: Seçiniz | U18: Seçiniz
J19: Seçiniz | P19: Seçiniz | U19: Seçiniz
J20: Seçiniz | P20: Seçiniz | U20: Seçiniz
J21: Seçiniz | P21: Seçiniz | U21: Seçiniz

Sheet Ana Ekipmanlar - Kazanlar
B3: Kazan Adı / Marka / Model | J3: Üretilen Akışkan Tipi | P3: Kazan Yaşı | U3: Atık Isı Geri Kazanımı | Z3: Kazan Isıl Verimi (%) | AE3: Fiili Üretim Miktarı (Ton/Yıl) | AJ3: Kullanım Süresi (saat/Yıl) | AO3: Elektrik Tüketimi (TEP/Yıl) | AS3: Yakıt Tüketimi (TEP/Yıl)
J5: Seçiniz | P5: Seçiniz | U5: Seçiniz
J6: Seçiniz | P6: Seçiniz | U6: Seçiniz
J7: Seçiniz | P7: Seçiniz | U7: Seçiniz
J8: Seçiniz | P8: Seçiniz | U8: Seçiniz
J9: Seçiniz | P9: Seçiniz | U9: Seçiniz
J10: Seçiniz | P10: Seçiniz | U10: Seçiniz
J11: Seçiniz | P11: Seçiniz | U11: Seçiniz
J12: Seçiniz | P12: Seçiniz | U12: Seçiniz
J13: Seçiniz | P13: Seçiniz | U13: Seçiniz
J14: Seçiniz | P14: Seçiniz | U14: Seçiniz
J15: Seçiniz | P15: Seçiniz | U15: Seçiniz
J16: Seçiniz | P16: Seçiniz | U16: Seçiniz
J17: Seçiniz | P17: Seçiniz | U17: Seçiniz
J18: Seçiniz | P18: Seçiniz | U18: Seçiniz
J19: Seçiniz | P19: Seçiniz | U19: Seçiniz
J20: Seçiniz | P20: Seçiniz | U20: Seçiniz
J21: Seçiniz | P21: Seçiniz | U21: Seçiniz

Sheet Ana Ekipmanlar - Kojen
A2: ► | B2: 5627 Sayılı Enerji Verimliliği Kanunu Uyarınca 100 MWe ve üzerinde kurulu gücü bulunan işletmelerin elektrik üretimi ile ilgili alanları Elektrik Üretim Tesisi (EÜT) sayılır ve endüstriyel işletme haricinde bu alan için EÜT formu doldurarak Bakanlığımıza iletirler.
B4: Bunun dışında kojenerasyon tesisi bulunan işletmeler için aşağıdaki tablonun doldurulması beklenmektedir.
B6: Üretici Firma, Marka, Model | L6: Kojen Yaşı | Q6: Teknoloji Türü | V6: Ortalama Kullanım Süresi (saat/Yıl) | AA6: Kojen Verimi (%) | AB6: Elektrik Tüketimi (TEP/Yıl) | AG6: Elektrik Üretimi (TEP/Yıl) | AK6: Toplam Yakıt Tüketimi (TEP/Yıl) | AP6: Toplam Isı Üretimi (TEP/Yıl)
L8: Seçiniz | Q8: Seçiniz
L9: Seçiniz | Q9: Seçiniz
L10: Seçiniz | Q10: Seçiniz
L11: Seçiniz | Q11: Seçiniz
L12: Seçiniz | Q12: Seçiniz
L13: Seçiniz | Q13: Seçiniz
L14: Seçiniz | Q14: Seçiniz
L15: Seçiniz | Q15: Seçiniz
L16: Seçiniz | Q16: Seçiniz
L17: Seçiniz | Q17: Seçiniz
L18: Seçiniz | Q18: Seçiniz
L19: Seçiniz | Q19: Seçiniz
L20: Seçiniz | Q20: Seçiniz
L21: Seçiniz | Q21: Seçiniz
L22: Seçiniz | Q22: Seçiniz
L23: Seçiniz | Q23: Seçiniz
L24: Seçiniz | Q24: Seçiniz
L25: Seçiniz | Q25: Seçiniz

Sheet Enerji Tüketim Dağılımı
B1: ► | C1: Sayaçlarla ölçümün mümkün olmadığı hallerde mühendislik yaklaşımları kullanarak veya varsa binanız için hazırlanan etüt raporlarından faydalanabilirsiniz.
B2: ► | C2: Kazan, Fırın gibi içerisinde yardımcı ekipman olarak motor,pompa,fan vs bulunan sistemleri bir bütün sistem olarak değerlendiriniz.
B3: ► | C3: 5,5 kW ve altındaki güçte motor tahrikli sistemleri (Motor, Pompa, Fan, Kompresör vs) ihmal edebilirsiniz.
B4: ► | C4: Ekipmanların yüzdesel dağılımında Enerji Tüketim Bildirimi esas alınacaktır. Her bir sütun kendi içinde toplamda %100 değerini sağlayacaktır.
AB5: ► | AC5: Kazanlar
B6: Enerjinin Kullanım Alanı | K6: Elektrik Tüketimi (%) | S6: Yakıt Tüketimi (%) | AC6: Sıcak Su ve Buhar Temininde kullanılan kazanların toplam tüketimdeki payını giriniz
B8: Motorlar | AB8: ► | AC8: Fırınlar
AC9: Kurutma Fırınlarının toplam enerji tüketimindeki payını giriniz.
B10: Pompalar | AB10: ► | AC10: Motorlar
AC11: Tesiste yer alan 5,5 kW ve üzerindeki motorların toplam tüketimdeki payını giriniz.
B12: Fanlar
AB13: ► | AC13: Pompalar
B14: Kompresörler | AC14: Su, yağ vs. akışkanların prosese aktarımında kullanılan 5,5 kW ve üzerindeki pompaların toplam tüketimdeki payını giriniz.
B16: Aydınlatma | AB16: ► | AC16: Fanlar
AC17: Tesiste yer alan 5,5 kW ve üzerindeki fanların toplam tüketimdeki payını giriniz.
B18: İklimlendirme (HVAC)
AB19: ► | AC19: Kompresörler
B20: Soğutma | AC20: Tesiste yer alan 5,5 kW ve üzerindeki kompresörlerin toplam tüketimdeki payını giriniz.
B22: Kazanlar | AB22: ► | AC22: Aydınlatma
AC23: İşletme sınırları içerisinde kalan iç ortam ve dış ortam aydınlatma armatürlerinin toplam tüketimdeki payını giriniz.
B24: Fırınlar
AB25: ► | AC25: İklimlendirme
B26: Diğer | AC26: Klima, havalandırma sistemlerinin toplam tüketimdeki payını giriniz.
AB27: ► | AC27: Soğutma
AC28: Soğutma kulesi, Chiller vs toplam tüketimdeki payını giriniz.

Sheet Enerji Yönetimi
AN1: Başarı Puanı | AX1: TEMİZLE
C2: ► | D2: Bu anket Enerji Yönetimi Başarı Skorunu belirlemek amacıyla ISO 50001 standardına uygun olarak hazırlanmıştır. | AN2: =(O26+W26+AE26+AM26+AT26+BA26)*100/24 -> 0 | AV2: TEMİZLE
D3: Performansın doğru bir şekilde belirlenebilmesi için lütfen her sütundan yalnızca işletmeniz için en uygun olan cevabı seçiniz.
C5: Seviye | H5: Enerji Politikaları | O5: P1 | P5: İdari Yapılanma | W5: P2 | X5: Yaygınlaştırma | AE5: P3 | AF5: İzleme | AM5: P4 | AN5: Bilinçlendirme | AT5: P5 | AU5: Yatırım | BA5: P6
H6: Belirli bir enerji politikası ve eylem planı bulunmakta olup takibi üst yönetimce yapılmaktadır | O6: 0 | P6: Enerji Yönetimi mevcut idari yapının bir parçası olarak faaliyet gösteriyor, görev tanımları açıkça belirtilmektedir | W6: 0 | X6: Enerji yöneticisi ve ilgili personel tarafından çeşitli yöntemlerle Enerji Verimliliği çalışmaları yaygınlaştırılmaktadır. | AE6: 0 | AF6: Hedef tanımlama, tüketim izleme, arıza tespiti, tasarrufların belirlemesi ve bütçe takibi konularında kapsamlı bir izleme sistemi uygulanmaktadır | AM6: 0 | AN6: Hem tesis içinde hem de dışında enerji verimliliğini destekleyen faaliyetler yürütülmektedir | AT6: 0 | AU6: Enerji verimliliği ve yenilenebilir enerji projeleri için gerekli yatırımlar yapılmaktadır | BA6: 0
H10: Belirli bir talimatname olsa da üst yöneticinin desteği alınamamaktadır | O10: 0 | P10: Enerji Yöneticisi ilgili idari amirin altında faaliyet gösteren bir komisyona karşı sorumludur | W10: 0 | X10: Enerji Komisyonu tarafından iletişim kanalları yoluyla enerji verimliliğine yönelik çalışmalar hakkında duyurular yapılmaktadır. | AE10: 0 | AF10: İzleme ve hedef belirleme konusunda ayrıntılı raporlamalar yapılsa bile gerçekleşen tasarruflara ilişkin bilgilendirme yapılmamaktadır | AM10: 0 | AN10: Tesis içinde enerji verimliliğini destekleyecek faaliyetler yürütülmektedir | AT10: 0 | AU10: Enerji Verimliliğine yönelik Kısa ve Orta Vadeli projeler hayata geçirilebilmektedir | BA10: 0
H14: Enerji Yöneticisi görevini aktif şekilde yerine getirememektedir | O14: 0 | P14: Enerji Yöneticisi faaliyetlerinde geçici bir komisyona karşı sorumludur | W14: 0 | X14: İletişim İlgili idari amir ile geçici komisyon arasında sağlanmaktadır | AE14: 0 | AF14: Sadece ana sayaçlar üzerinden izleme hedef belirleme raporları üretilmekte olup tasarruflara ilşkin bilgilendirmeler kısmen yapılmaktadır | AM14: 0 | AN14: Sürekli olmasa da bazen personele yönelik eğitim faaliyetleri düzenlenmektedir | AT14: 0 | AU14: Sadece Kısa Vadeli projeler hayata geçirilebilmektedir | BA14: 0
H18: Yazılı olmayan bir takım talimatlar mevcuttur | O18: 0 | P18: Enerji Yönetim faaliyetleri sertifikalı olmayan ve /veya yarı zamnalı çalışan bir personel tarafından yürütülmektedir | W18: 0 | X18: Bazı mühendisler ile birkaç teknik personel haricinde kimsenin yapılan çalışmalar hakkında bilgisi bulunmamaktadır | AE18: 0 | AF18: Raporlamalar enerji faturaları üzerinden yapılmakta ve tasarrufa yönelik değerlendirmeler birkaç teknik personel bilgisi dahilinde kalmaktadır | AM18: 0 | AN18: Enerji verimliliğini teşvik edecek faaliyetler yüzeysel çalışmalarla sınırlıdır | AT18: 0 | AU18: Sadece yatırım gerektirmeyen tasarruf tedbirleri dikkate alınmaktadır | BA18: 0
H22: Belirgin bir politikamız bulunmamaktadır | O22: 0 | P22: Enerji yönetimine ilişkin hiçbir idari yapı bulunmamaktadır | W22: 0 | X22: Personel ve yönetimin enerji yönetimini hakkında bilgisi bulunmamaktadır | AE22: 0 | AF22: Herhangi bir bilgi sistemi, izleme aracı kullanılmamaktadır | AM22: 0 | AN22: Enerji verimliliğini teşvik edecek herhangi bir çalışma yapılmamaktadır | AT22: 0 | AU22: Hiçbir verim artırıcı proje hayata geçirilmemektedir | BA22: 0
O26: =SUM(O6:O25) -> 0 | W26: =SUM(W6:W25) -> 0 | AE26: =SUM(AE6:AE25) -> 0 | AM26: =SUM(AM6:AM25) -> 0 | AT26: =SUM(AT6:AT25) -> 0 | BA26: =SUM(BA6:BA25) -> 0

Sheet İklimden Arındırma (hidden)
D4: CLIMATE DEPENDENT THERMAL ENERGY CONSUMPTION AND NORMALIZATION
B7: BASE (reference) YEAR | D7: 2017
B8: AVERAGE INTERNAL SPACE TEMPERATURE, oC | D8: 17
B9: % OF RETURN AIR IN VENTILATION | D9: 30 | E9: Thermal energy consumption for space heating and ventilation
B10: AVERAGE EFFICIENCY OF HEAT REQUPERATION IN VENTILATION, % | D10: 50 | E10: SPACE HEATING | G10: VENTILATION | I10: TOTAL
B11: MONTH | C11: NUMBER OF HEATING DAYS | D11: AVERAGE AMBIENT TEMPERATURE, oC | E11: HEATING DEGREEDAYS | F11: Thermal energy consumption, kWh | G11: HEATING DEGREEDAYS | H11: Thermal energy consumption, kWh | I11: HEATING DEGREEDAYS (Ddby) | J11: Total energy consumption, kWh
B12: 1 | C12: 31 | D12: 2 | E12: =C12*($D$8-D12) -> 465 | F12: 200 | G12: =($D$8-(D12+($D$8-D12)*$D$9/100))*(1-$D$10/100)*C12 -> 162.75 | H12: 100 | I12: =E12+G12 -> 627.75 | J12: =F12+H12 -> 300
B13: 2 | C13: 29 | D13: 3.2 | E13: =C13*($D$8-D13) -> 400.2 | F13: 180 | G13: =($D$8-(D13+($D$8-D13)*$D$9/100))*(1-$D$10/100)*C13 -> 140.07 | H13: 80 | I13: =E13+G13 -> 540.27 | J13: 260
B14: 3 | C14: 30 | D14: 6 | E14: 330 | F14: 120 | G14: 115.5 | H14: 70 | I14: 445.5 | J14: 190
B15: 4 | C15: 5 | D15: 9 | E15: 40 | F15: 55 | G15: 14 | H15: 70 | I15: 54 | J15: 125
B16: 5 | E16: 0 | G16: 0 | I16: 0 | J16: 0
B17: 6 | E17: 0 | G17: 0 | I17: 0 | J17: 0
B18: 7 | E18: 0 | G18: 0 | I18: 0 | J18: 0
B19: 8 | E19: 0 | G19: 0 | I19: 0 | J19: 0
B20: 9 | E20: 0 | G20: 0 | I20: 0 | J20: 0
B21: 10 | C21: 5 | D21: 5 | E21: 60 | F21: 60 | G21: 21 | H21: 45 | I21: 81 | J21: 105
B22: 11 | C22: 30 | D22: 0 | E22: 510 | F22: 90 | G22: 178.5 | H22: 60 | I22: 688.5 | J22: 150
B23: 12 | C23: 31 | D23: -2 | E23: 589 | F23: 110 | G23: 206.15 | H23: 60 | I23: 795.15 | J23: 170
B24: TOTAL | C24: =SUM(C12:C23) -> 161 | E24: =SUM(E12:E23) -> 2394.2 | F24: 815 | G24: 837.97 | H24: 485 | I24: 3232.17 | J24: 1300
B27: CURRENT YEAR | D27: 2020
B28: AVERAGE INTERNAL SPACE TEMPERATURE, oC | D28: 17
B29: % OF RETURN AIR IN VENTILATION | D29: 30 | E29: Thermal energy consumption for space heating and ventilation
B30: AVERAGE EFFICIENCY OF HEAT REQUPERATION IN VENTILATION, % | D30: 50 | E30: SPACE HEATING | G30: VENTILATION | I30: TOTAL
B31: MONTH | C31: NUMBER OF HEATING DAYS | D31: AVERAGE AMBIENT TEMPERATURE, oC | E31: HEATING DEGREEDAYS | F31: Thermal energy consumption, kWh | G31: HEATING DEGREEDAYS | H31: Thermal energy consumption, kWh | I31: HEATING DEGREEDAYS (DDcy) | J31: Total energy consumption, kWh
B32: 1 | C32: 31 | D32: 1 | E32: =C32*($D$8-D32) -> 496 | F32: 250 | G32: =($D$8-(D32+($D$8-D32)*$D$29/100))*(1-$D$30/100)*C32 -> 173.6 | H32: 120 | I32: =E32+G32 -> 669.6 | J32: =F32+H32 -> 370
B33: 2 | C33: 29 | D33: 2 | E33: =C33*($D$8-D33) -> 435 | F33: 220 | G33: =($D$8-(D33+($D$8-D33)*$D$29/100))*(1-$D$30/100)*C33 -> 152.25 | H33: 95 | I33: =E33+G33 -> 587.25 | J33: 315
B34: 3 | C34: 30 | D34: 3.5 | E34: 405 | F34: 150 | G34: 141.75 | H34: 85 | I34: 546.75 | J34: 235
B35: 4 | C35: 5 | D35: 4 | E35: 65 | F35: 95 | G35: 22.75 | H35: 70 | I35: 87.75 | J35: 165
B36: 5 | E36: 0 | G36: 0 | I36: 0 | J36: 0
B37: 6 | E37: 0 | G37: 0 | I37: 0 | J37: 0
B38: 7 | E38: 0 | G38: 0 | I38: 0 | J38: 0
B39: 8 | E39: 0 | G39: 0 | I39: 0 | J39: 0
B40: 9 | E40: 0 | G40: 0 | I40: 0 | J40: 0
B41: 10 | C41: 5 | D41: 1 | E41: 80 | F41: 80 | G41: 28 | H41: 75 | I41: 108 | J41: 155
B42: 11 | C42: 30 | D42: -3 | E42: 600 | F42: 120 | G42: 210 | H42: 80 | I42: 810 | J42: 200
B43: 12 | C43: 31 | D43: -4 | E43: 651 | F43: 250 | G43: 227.85 | H43: 90 | I43: 878.85 | J43: 340
B44: TOTAL | C44: =SUM(C32:C43) -> 161 | E44: =SUM(E32:E43) -> 2732 | F44: 1165 | G44: 956.2 | H44: 615 | I44: 3688.2 | J44: 1780
B46: CCF = DDby/ DDcy = | D46: =$I$24/$I$44 -> 0.8763543192
B48: NORMALIZED ENERGY CONSUMPTION = TOTAL ENERGY CONSUMPTION(current year)* CCF= | J48: =$J$44*$D$46 -> 1559.910688 | K48: kWh

Sheet Sayfa1 (hidden)
A1: Seçiniz
A2: 13.10 Tekstil Elyafının Hazırlanması ve Bükülmesi | F2: Seçiniz | G2: Seçiniz | I2: Seçiniz | J2: Seçiniz | O2: Seçiniz | Q2: Seçiniz | S2: Seçiniz | T2: Seçiniz
A3: 13.20 Dokuma | F3: Var | G3: Yapıldı | I3: Ton/Yıl | J3: Isı Geri Kazanımlı Kombine Çevrim Gaz Türbini | O3: 5 Yıldan Az | Q3: Sıcak Su | S3: Var | T3: Doğalgazlı Kurutma
A4: 13.30 Tekstil Ürünlerinin Bitirilmesi | F4: Yok | G4: Yapılmadı | I4: m/Yıl | J4: Karşı Basınçlı Gaz Türbini | O4: 5-10 Yıl | Q4: Doymuş Buhar | S4: Yok | T4: İnfraredli Kurutma
A5: 13.90 Diğer Tekstil Ürünlerinin İmalatı | G5: Yapılması Planlanıyor | I5: m²/Yıl | J5: Ara Buhar Çekilen Yoğuşmalı Buhar Türbini | O5: 10-15 Yıl | Q5: Kızgın Buhar | T5: Ram Kenar Kurutma
I6: adet/Yıl | J6: Isı Geri Kazanımlı Gaz Türbini | O6: 15-20 Yıl | Q6: Diğer | T6: Fikse Fırını
J7: İçten Yanmalı Motor | O7: 20 Yıldan Fazla | T7: Baskı kurutma
J8: Mikto Türbinler | T8: Kaplama Kurutma
J9: Stirling Motoru | T9: Diğer
J10: Yakıt Hücresi
J11: Buhar Makinası
J12: Organik Rankine Çevrimi
J13: Diğer
I17: Seçiniz
I18: Ton/Ay
I19: m/Ay
I20: m²/Ay
I21: adet/Ay

Sheet Prodtr (hidden)
A1: 13.10.10.00.00 | B1: Yün yağı ve bundan türetilen yağlı maddeler (lanolin dahil) | C1: Kilogram
A2: 13.10.21.00.00 | B2: Ham ipek (bükülmemiş) | C2: Kilogram
A3: 13.10.22.00.00 | B3: Yün, yağı alınmış veya karbonize edilmiş (kardelenmemiş veya taranmamış) | C3: Kilogram
A4: 13.10.23.00.00 | B4: Yün veya ince hayvan kıllarının tarak altı döküntüsü | C4: Kilogram
A5: 13.10.24.00.00 | B5: Yün veya hayvan kılları (kardelenmiş veya taranmış) (yün topları dahil) | C5: Kilogram
A6: 13.10.25.00.00 | B6: Pamuk (kardelenmiş veya taranmış) | C6: Kilogram
A7: 13.10.26.00.00 | B7: Jüt ve diğer tekstil elyafları (keten, saf kenevir ve rami hariç) işlenmiş fakat eğirilmemiş | C7: Kilogram
A8: 13.10.29.00.00 | B8: Diğer bitkisel tekstil elyafları, işlenmiş fakat eğirilmemiş | C8: Kilogram
A9: 13.10.31.00.01 | B9: Poliesterden lif ve döküntüler (eğirilme için kardelenmiş, taranmış veya başka şekilde işlenmiş) | C9: Kilogram
A10: 13.10.31.00.02 | B10: Akrilik veya modakrilikten lif ve döküntüler (eğirilme için kardelenmiş, taranmış veya başka şekilde işlenmiş) | C10: Kilogram
A11: 13.10.31.00.99 | B11: Diğer sentetik devamsız lifler ve döküntüleri (eğirilme için kardelenmiş, taranmış veya başka şekilde işlenmiş) | C11: Kilogram
A12: 13.10.32.00.00 | B12: Suni devamsız elyaf (eğirilme için kardelenmiş, taranmış veya başka şekilde işlenmiş) | C12: Kilogram
A13: 13.10.40.10.00 | B13: İpek iplik (ipek döküntülerinden elde edilenler hariç) (perakende satışa hazır olmayanlar) | C13: Kilogram
A14: 13.10.40.30.00 | B14: İpek döküntülerinden elde edilen iplikler (perakende satışa hazır olmayanlar) | C14: Kilogram
A15: 13.10.40.50.00 | B15: İpek iplik ve ipek döküntülerinden elde edilen iplikler (perakende satışa hazır); ipek misina | C15: Kilogram
A16: 13.10.50.10.00 | B16: Kardelenmiş yünden veya kardelenmiş ince hayvan kılından iplikler (perakende satışa hazır olmayan) | C16: Kilogram
A17: 13.10.50.30.00 | B17: Taranmış yünden veya taranmış ince hayvan kılından iplikler (perakende satışa hazır olmayan) | C17: Kilogram
A18: 13.10.50.50.00 | B18: Yün veya ince hayvan kılından iplikler (perakende satışa hazır) | C18: Kilogram
A19: 13.10.61.32.00 | B19: Dokuma kumaşlar için taranmamış pamuktan iplikler (perakende satışa hazır olmayan) (halı ve yer kaplaması için olanlar hariç) | C19: Kilogram
A20: 13.10.61.33.00 | B20: Örgü kumaşlar ve çoraplar için taranmamış pamuktan iplikler (perakende satışa hazır olmayan) | C20: Kilogram
A21: 13.10.61.35.00 | B21: Diğer kullanımlar için taranmamış pamuktan iplikler (perakende satışa hazır olmayan) (halı ve yer kaplaması için olanlar dahil) | C21: Kilogram
A22: 13.10.61.52.00 | B22: Dokuma kumaşlar için taranmış pamuktan iplikler (perakende satışa hazır olmayan) (halı ve yer kaplaması için olanlar hariç) | C22: Kilogram
A23: 13.10.61.53.00 | B23: Örgü kumaşlar ve çoraplar için taranmış pamuktan iplikler (perakende satışa hazır olmayan) | C23: Kilogram
A24: 13.10.61.55.00 | B24: Diğer kullanımlar için taranmış pamuktan iplikler (perakende satışa hazır olmayan) (halı ve yer kaplaması için olanlar dahil) | C24: Kilogram
A25: 13.10.61.60.00 | B25: Pamuk iplikler (perakende satışa hazır) (dikiş ipliği hariç) | C25: Kilogram
A26: 13.10.62.00.00 | B26: Pamuk dikiş iplikleri | C26: Kilogram
A27: 13.10.71.10.00 | B27: Keten iplikler (perakende satışa hazır olmayan) | C27: Kilogram
A28: 13.10.71.20.00 | B28: Keten iplikler (perakende satışa hazır) | C28: Kilogram
A29: 13.10.72.00.00 | B29: Bitkisel tekstil elyafından veya bitki kabuğu elyaflarından yapılan iplikler (keten hariç); kağıt iplikleri | C29: Kilogram
A30: 13.10.81.10.01 | B30: Naylon, diğer poliamidlerden iplik (dikiş ipliği hariç) rötar/kable diğer iplikler (Perakende satışa hazır olmayan) | C30: Kilogram
A31: 13.10.81.10.02 | B31: Poliesterlerden iplik (dikiş ipliği hariç) rötar/kable diğer iplikler (Perakende satışa hazır olmayan) | C31: Kilogram
A32: 13.10.81.10.03 | B32: Polipropilenden iplik (dikiş ipliği hariç) rötar/kable (Perakende satışa hazır olmayan) | C32: Kilogram
A33: 13.10.81.10.99 | B33: Diğer iplikler (Akrilik veya vinil sentetik filamentten iplikler dahil, dikiş ipliği hariç) rötar/kable (perakende satışa hazır olmayan) | C33: Kilogram
A34: 13.10.81.30.00 | B34: Çok katlı veya bükülü suni filament iplikler (perakende satışa hazır olmayan) (dikiş ipliği hariç) | C34: Kilogram
A35: 13.10.81.50.00 | B35: Suni ve sentetik filament ipliği, (perakende satışa hazır) (dikiş ipliği hariç) | C35: Kilogram
A36: 13.10.82.10.00 | B36: İplikler, ağırlığına göre sentetik devamsız elyaf içeriği ≥ % 85 olanlar (dikiş ipliği hariç) (perakende satışa hazır olmayan) | C36: Kilogram
A37: 13.10.82.50.00 | B37: İplikler, ağırlığına göre sentetik devamsız elyaf içeriği ≥ % 85 olanlar (dikiş ipliği hariç) (perakende satışa hazır) | C37: Kilogram
A38: 13.10.83.20.00 | B38: İplikler, suni elyaflarla karışık, ağırlığına göre devamsız polyester elyaf içeriği < % 85 olanlar (dikiş ipliği hariç) (perakende satışa hazır olmayan) | C38: Kilogram
A39: 13.10.83.33.00 | B39: İplikler, kardelenmiş yün veya ince hayvan kılıyla karışık, ağırlığına göre sentetik devamsız elyaf içeriği < % 85 olanlar (dikiş ipliği hariç) (perakende satışa hazır olmayan) | C39: Kilogram
A40: 13.10.83.36.00 | B40: İplikler, taranmış yün veya ince hayvan kılıyla karışık, ağırlığına göre sentetik devamsız elyaf içeriği < % 85 olanlar (perakende satışa hazır olmayan) | C40: Kilogram
A41: 13.10.83.40.00 | B41: İplikler, pamukla karışık, ağırlığına göre sentetik devamsız elyaf içeriği < % 85 olanlar (dikiş ipliği hariç) (perakende satışa hazır olmayan) | C41: Kilogram
A42: 13.10.83.80.00 | B42: Başka yerde sınıflandırılmamış diğer iplikler, ağırlığına göre sentetik devamsız elyaf içeriği < % 85 olanlar (dikiş ipliği hariç) (perakende satışa hazır olmayan) | C42: Kilogram
A43: 13.10.83.90.00 | B43: İplikler, ağırlığına göre sentetik devamsız elyaf içeriği < % 85 olanlar (dikiş ipliği hariç) (perakende satışa hazır) | C43: Kilogram
A44: 13.10.84.10.00 | B44: Suni devamsız elyaftan iplikler (dikiş ipliği hariç) (perakende satışa hazır olmayan) | C44: Kilogram
A45: 13.10.84.30.00 | B45: Suni devamsız elyaftan iplikler (dikiş ipliği hariç) (perakende satışa hazır) | C45: Kilogram
A46: 13.10.85.10.00 | B46: Suni ve sentetik filamentlerden dikiş iplikleri | C46: Kilogram
A47: 13.10.85.50.00 | B47: Suni ve sentetik devamsız elyaflardan dikiş iplikleri | C47: Kilogram
A48: 13.10.92.00.00 | B48: Taraklama aşamasından kalan döküntüler ve diğer pamuk atıkları | C48: Kilogram
A49: 13.20.11.00.00 | B49: İpekten veya ipek döküntülerinden dokuma kumaşlar | C49: Metrekare
A50: 13.20.12.30.00 | B50: Dokuma kumaşlar (kardelenmiş yünden veya kardelenmiş ince hayvan kılından) | C50: Metrekare
A51: 13.20.12.60.00 | B51: Dokuma kumaşlar (taranmış yünden, taranmış ince hayvan kılından veya kaba hayvan kılından) | C51: Metrekare
A52: 13.20.13.30.00 | B52: Dokuma kumaşlar, ketenden, ağırlığına göre keten içeriği ≥ %85 olanlar | C52: Metrekare
A53: 13.20.13.60.00 | B53: Dokuma kumaşlar, ketenden, ağırlığına göre keten içeriği < %85 olanlar | C53: Metrekare
A54: 13.20.14.00.00 | B54: Dokuma kumaşlar, jüt veya diğer tekstil bitki kabuğu elyaflarından (keten, saf kenevir ve rami hariç) | C54: Metrekare
A55: 13.20.19.00.00 | B55: Dokuma kumaşlar, saf kenevir, rami veya diğer bitkisel tekstil elyaflarından (keten, jüt, diğer bitki kabuğu elyafları hariç) veya kağıt ipliğinden | C55: Metrekare
A56: 13.20.20.14.00 | B56: Dokuma kumaşlar, pamuktan (giysiler için, tek renk ipliklerden, ağırlığı ≤ 200 g/m² olanlar) | C56: Metrekare
A57: 13.20.20.17.00 | B57: Dokuma kumaşlar, pamuktan (ev tekstil ürünleri veya döşemelik tekstil için, tek renk ipliklerden, ağırlığı ≤ 200 g/m² olanlar) | C57: Metrekare
A58: 13.20.20.19.00 | B58: Dokuma kumaşlar, pamuktan (teknik veya endüstriyel kullanım için (tıbbi gazlı bez, sargı bezi hariç), tek renk ipliklerden, ağırlığı ≤ 200 g/m² olanlar) | C58: Metrekare
A59: 13.20.20.20.00 | B59: Dokuma kumaşlar, pamuktan (tıbbi gazlı bez, bandaj ve sargılar için, ağırlığı ≤ 100 g/m² olanlar) | C59: Metrekare
A60: 13.20.20.31.00 | B60: Dokuma kumaşlar, pamuktan (gömlek ve bluzlar için, farklı renk ipliklerden, ağırlığı ≤ 200 gr/m² olanlar) | C60: Metrekare
A61: 13.20.20.42.00 | B61: Dokuma kumaşlar, pamuktan (giysiler için, tek renk ipliklerden, ağırlığı > 200 gr/m² olanlar) | C61: Metrekare
A62: 13.20.20.44.00 | B62: Dokuma kumaşlar, pamuktan (ev tekstil ürünleri veya döşemelik tekstil için, tek renk ipliklerden, ağırlığı > 200 gr/m² olanlar) | C62: Metrekare
A63: 13.20.20.49.00 | B63: Dokuma kumaşlar, pamuktan (teknik veya endüstriyel kullanım için, tek renk ipliklerden, ağırlığı > 200 gr/m² olanlar) | C63: Metrekare
A64: 13.20.20.60.01 | B64: Dokuma kumaşlar, pamuktan (kot için (mavi dışındaki kotlar dahil), ağırlığı > 200 gr/m², pamuk oranı >= % 85 olanlar) | C64: Metrekare
A65: 13.20.20.60.02 | B65: Dokuma kumaşlar, pamuktan (kot için (mavi dışındaki kotlar dahil), ağırlığı > 200 gr/m², pamuk oranı < % 85 olanlar) | C65: Metrekare
A66: 13.20.20.72.00 | B66: Dokuma kumaşlar, pamuktan (diğer giyim eşyaları için, farklı renk ipliklerden) | C66: Metrekare
A67: 13.20.20.74.00 | B67: Dokuma kumaşlar, pamuktan (ev tekstil ürünleri veya döşemelik tekstil için, farklı renk ipliklerden) | C67: Metrekare
A68: 13.20.20.79.00 | B68: Dokuma kumaşlar, pamuktan (teknik veya endüstriyel kullanım için, farklı renk ipliklerden) | C68: Metrekare
A69: 13.20.31.30.00 | B69: Dokuma kumaşlar, yüksek dayanırlıkta iplik, şerit veya benzerlerinden elde edilen suni ve sentetik filament ipliklerden (naylon, diğer poliamidler, polyester, suni ipekli kumaşlar dahil) | C69: Metrekare
A70: 13.20.31.50.00 | B70: Dokuma kumaşlar, sentetik filament ipliklerden (yüksek dayanırlıkta iplik, şerit vb.den elde edilen sentetik filament ipliklerden olanlar hariç) | C70: Metrekare
A71: 13.20.31.70.00 | B71: Dokuma kumaşlar, suni filament ipliklerden (yüksek dayanırlıkta ipliklerden elde edilen suni filament ipliklerden olanlar hariç) | C71: Metrekare
A72: 13.20.32.10.00 | B72: Dokuma kumaşlar, sentetik devamsız elyaftan (ağırlığına göre sentetik devamsız elyaf içeriği ≥ % 85 olanlar) | C72: Metrekare
A73: 13.20.32.20.00 | B73: Dokuma kumaşlar, sadece veya ağırlıklı olarak pamuk karışımlı sentetik devamsız elyaftan (ağırlığına göre söz konusu elyaf içeriği < % 85 olanlar) (farklı renk ipliklerden olanlar hariç) | C73: Metrekare
A74: 13.20.32.30.00 | B74: Dokuma kumaşlar, sadece veya ağırlıklı olarak pamuk karışımlı sentetik devamsız elyaftan (ağırlığına göre söz konusu elyaf içeriği < % 85 olanlar) (farklı renk ipliklerden) | C74: Metrekare
A75: 13.20.32.40.00 | B75: Dokuma kumaşlar, sadece veya ağırlıklı olarak kardelenmiş yün ya da ince hayvan kılı karışımlı sentetik devamsız elyaftan | C75: Metrekare
A76: 13.20.32.50.00 | B76: Dokuma kumaşlar, sadece veya ağırlıklı olarak taranmış yün ya da ince hayvan kılı karışımlı sentetik devamsız elyaftan | C76: Metrekare
A77: 13.20.32.90.01 | B77: Devamsız poliester+viskoz ipeği liflerinden dokumalar | C77: Metrekare
A78: 13.20.32.90.02 | B78: Devamsız poliester, suni, sentetik karışımı dokumalar | C78: Metrekare
A79: 13.20.32.90.03 | B79: Diğer devamsız poliester karışımlı dokumalar | C79: Metrekare
A80: 13.20.32.90.04 | B80: Devamsız akrilik/modakrilik+sentetik/suni karışımı dokumalar | C80: Metrekare
A81: 13.20.32.90.05 | B81: Devamsız diğer akrilik/modakrilikli karışımlardan dokumalar | C81: Metrekare
A82: 13.20.32.90.06 | B82: Devamsız sentetik - suni karışımı dokumalar | C82: Metrekare
A83: 13.20.32.90.07 | B83: Devamsız sentetik elyafın diğer karışımları ile dokumalar | C83: Metrekare
A84: 13.20.33.30.00 | B84: Dokuma kumaşlar, suni devamsız elyaftan (farklı renk ipliklerden olanlar hariç) | C84: Metrekare
A85: 13.20.33.50.00 | B85: Dokuma kumaşlar, suni devamsız elyaftan (farklı renk ipliklerden) | C85: Metrekare
A86: 13.20.41.00.01 | B86: Dokunmuş tırtıl mensucat | C86: Metrekare
A87: 13.20.41.00.02 | B87: Dokunmuş mensucat (suni liften, çözgü iplikli veya atkı iplikli kadife ve pelüş) | C87: Metrekare
A88: 13.20.41.00.03 | B88: Dokunmuş mensucat (pamuklu, iplikli veya atkı iplikli kadife ve pelüş) | C88: Metrekare
A89: 13.20.41.00.04 | B89: Dokunmuş mensucat (ketenden) | C89: Metrekare
A90: 13.20.41.00.99 | B90: Diğer - çözgü ve atkı kadife kumaşlar; şönil kumaşlar (pamuktan havlu cinsi bukleli kumaşlar, tafte edilmiş tekstil kumaşları, dar dokunmuş kumaşlar hariç) | C90: Metrekare
A91: 13.20.42.00.00 | B91: Havlu ve benzeri ilmeği kesilmemiş dokuma kumaşlar, pamuktan olanlar | C91: Metrekare
A92: 13.20.43.00.00 | B92: Diğer havlu kumaşlar ve benzeri ilmeği kesilmemiş dokuma kumaşlar (pamuktan olanlar hariç) | C92: Metrekare
A93: 13.20.44.00.00 | B93: Gazlı dokumalar (tülbent, şile bezi gibi seyrek dokumalar) (tıbbi gazlı bez, dar dokuma kumaşlar hariç) | C93: Metrekare
A94: 13.20.45.00.00 | B94: Tafting (püsküllü) dokuma kumaşlar (tafting halılar ve diğer tekstil yer kaplamaları hariç) | C94: Metrekare
A95: 13.20.46.00.00 | B95: Dokuma kumaşlar, cam elyafından (dar kumaşlar, cam yünü dahil) | C95: Kilogram
A96: 13.30.11.10.00 | B96: Elyafların boyanması | C96: Türk Lirası
A97: 13.30.11.21.00 | B97: İpek ipliklerin boyanması | C97: Türk Lirası
A98: 13.30.11.22.00 | B98: Yünden, ince veya kaba hayvan kılından ve at kılından ipliklerin boyanması | C98: Türk Lirası
A99: 13.30.11.23.00 | B99: Pamuk ipliklerin boyanması (dikiş iplikleri hariç) | C99: Türk Lirası
A100: 13.30.11.24.00 | B100: Keten, jüt, diğer tekstil bitki kabuğu liflerinin, bitkisel tekstil elyafının ve kağıt ipliklerinin boyanması | C100: Türk Lirası
A101: 13.30.11.25.00 | B101: Sentetik filament ipliklerinin boyanması (dikiş ipliği hariç) | C101: Türk Lirası
A102: 13.30.11.26.00 | B102: Suni filament ipliklerinin boyanması (dikiş ipliği hariç) | C102: Türk Lirası
A103: 13.30.11.27.00 | B103: Sentetik devamsız elyaf ipliğinin boyanması (dikiş ipliği hariç) | C103: Türk Lirası
A104: 13.30.11.28.00 | B104: Suni devamsız elyaf ipliğinin boyanması (dikiş ipliği hariç) | C104: Türk Lirası
A105: 13.30.12.10.00 | B105: İpek dokuma kumaşların ağartılması | C105: Türk Lirası
A106: 13.30.12.20.00 | B106: Yün, ince veya kaba hayvan kılı veya at kılı dokuma kumaşların ağartılması | C106: Türk Lirası
A107: 13.30.12.30.00 | B107: Pamuklu dokuma kumaşların ağartılması | C107: Türk Lirası
A108: 13.30.12.40.00 | B108: Keten, jüt, diğer tekstil bitki kabuğu elyaflarından, bitkisel tekstil elyafından ve kağıt ipliklerinden yapılmış dokuma kumaşların ağartılması | C108: Türk Lirası
A109: 13.30.12.50.00 | B109: Sentetik filament ipliklerinden veya sentetik elyaftan yapılan dokuma kumaşların ağartılması | C109: Türk Lirası
A110: 13.30.12.60.00 | B110: Suni filament ipliklerinden veya suni elyaftan yapılan dokuma kumaşların ağartılması | C110: Türk Lirası
A111: 13.30.12.70.00 | B111: Dokuma havlı kumaşların ve şönil kumaşların ağartılması (pamuklu havlu ve benzeri ilmeği kesilmemiş dokuma kumaşlar ile dar dokuma kumaşlar hariç) | C111: Türk Lirası
A112: 13.30.12.80.00 | B112: Havlu ve benzeri ilmeği kesilmemiş dokuma kumaşların ağartılması (tafting (püsküllü) dokuma kumaşlar hariç) | C112: Türk Lirası
A113: 13.30.12.90.00 | B113: Örgü (triko) veya tığ işi (kroşe) kumaşların ağartılması | C113: Türk Lirası
A114: 13.30.13.10.00 | B114: İpek veya ipek döküntüsünden dokuma kumaşların boyanması | C114: Türk Lirası
A115: 13.30.13.20.00 | B115: Yünden, ince/kaba hayvan kılından veya at kılından dokuma kumaşların boyanması | C115: Türk Lirası
A116: 13.30.13.30.00 | B116: Pamuklu dokuma kumaşların boyanması | C116: Türk Lirası
A117: 13.30.13.40.00 | B117: Keten, jüt, diğer tekstil bitki kabuğu elyaflarından, bitkisel tekstil elyafından ve kağıt ipliklerinden yapılmış dokuma kumaşların boyanması | C117: Türk Lirası
A118: 13.30.13.50.00 | B118: Sentetik filament ipliklerinden veya sentetik elyaftan yapılmış dokuma kumaşların boyanması | C118: Türk Lirası
A119: 13.30.13.60.00 | B119: Suni filament ipliklerinden veya suni elyaftan yapılmış dokuma kumaşların boyanması | C119: Türk Lirası
A120: 13.30.13.70.00 | B120: Dokuma havlı kumaşların ve şönil kumaşların boyanması (pamuklu havlu ve benzeri ilmeği kesilmemiş dokuma kumaşlar ile dar dokuma kumaşlar hariç) | C120: Türk Lirası
A121: 13.30.13.80.00 | B121: Havlu ve benzeri ilmeği kesilmemiş dokuma kumaşların boyanması (tafting (püsküllü) dokuma kumaşlar hariç) | C121: Türk Lirası
A122: 13.30.13.90.00 | B122: Örgü (triko) veya tığ işi (kroşe) kumaşlar ile dokusuz olanların boyanması | C122: Türk Lirası
A123: 13.30.19.10.00 | B123: İpek dokuma kumaşların bitirilmesi (ağartma, boyama, baskı hariç) | C123: Türk Lirası
A124: 13.30.19.20.00 | B124: Yünden, ince/kaba hayvan kılından veya at kılından dokuma kumaşların bitirilmesi (ağartma, boyama, baskı hariç) | C124: Türk Lirası
A125: 13.30.19.30.00 | B125: Pamuklu dokuma kumaşların bitirilmesi(ağartma, boyama, baskı hariç) | C125: Türk Lirası
A126: 13.30.19.40.00 | B126: Keten, jüt, diğer tekstil bitki kabuğu elyaflarından, bitkisel tekstil elyafından ve kağıt ipliklerinden yapılmış dokuma kumaşların bitirilmesi (ağartma, boyama, baskı hariç) | C126: Türk Lirası
A127: 13.30.19.50.00 | B127: Sentetik filament ipliklerden veya sentetik elyaftan yapılmış dokuma kumaşların bitirilmesi (ağartma, boyama, baskı hariç) | C127: Türk Lirası
A128: 13.30.19.60.00 | B128: Suni filament ipliklerden veya suni elyaftan yapılmış dokuma kumaşların bitirilmesi (ağartma, boyama, baskı hariç) | C128: Türk Lirası
A129: 13.30.19.70.00 | B129: Dokuma havlı kumaşların ve şönil kumaşların bitirilmesi, (ağartma, boyama, baskı hariç), (pamuklu havlu ve benzeri ilmeği kesilmemiş dokuma kumaşlar ile dar dokuma kumaşlar hariç) | C129: Türk Lirası
A130: 13.30.19.80.00 | B130: Havlu ve benzeri ilmeği kesilmemiş dokuma kumaşların (tafting (püsküllü) dokuma kumaşlar hariç) bitirilmesi (ağartma, boyama, baskı hariç) | C130: Türk Lirası
A131: 13.30.19.90.00 | B131: Örgü (triko) veya tığ işi (kroşe) kumaşların ve dokusuz olanların bitirilmesi (ağartma, boyama, baskı hariç) | C131: Türk Lirası
A132: 13.30.19.95.00 | B132: Giyim eşyalarının bitirilmesi hizmetleri | C132: Türk Lirası
A133: 13.91.11.00.00 | B133: Havlı kumaşlar (tüylendirilmiş kumaşlar gibi), ilmekli kumaşlar (örgü (triko) veya tığ işi (kroşe) olanlar) | C133: Kilogram
A134: 13.91.19.10.00 | B134: Örgü (triko) veya tığ işi (kroşe) kumaşlar (havlı kumaşlar hariç) | C134: Kilogram
A135: 13.91.19.20.00 | B135: Suni kürk ve bundan yapılmış eşyalar | C135: Türk Lirası
A136: 13.92.11.30.00 | B136: Battaniyeler ve seyahat battaniyeleri, yün veya ince hayvan kılından (elektrikli battaniyeler hariç) | C136: Adet sayısı
A137: 13.92.11.50.00 | B137: Battaniyeler ve seyahat battaniyeleri, sentetik elyaftan (elektrikli battaniyeler hariç) | C137: Adet sayısı
A138: 13.92.11.90.00 | B138: Battaniyeler ve seyahat battaniyeleri, tekstil malzemelerinden (elektrikli battaniyeler; yünden, ince hayvan kılından ve sentetik elyaftan olanlar hariç) | C138: Adet sayısı
A139: 13.92.12.30.00 | B139: Yatak takımları, çarşafları ve yastık kılıfları, örgü (triko) veya tığ işi (kroşe) tekstilden | C139: Kilogram
A140: 13.92.12.53.01 | B140: Yastık kılıfları, pamuktan (örgü (triko) veya tığ işi (kroşe) hariç) | C140: Kilogram
A141: 13.92.12.53.02 | B141: Yatak takımları, pamuktan (örgü (triko) veya tığ işi (kroşe) hariç) | C141: Kilogram
A142: 13.92.12.53.03 | B142: Yatak çarşafları, pamuktan (örgü (triko) veya tığ işi (kroşe) hariç) | C142: Kilogram
A143: 13.92.12.55.00 | B143: Yatak takımları, çarşafları ve yastık kılıfları, keten veya ramiden (örgü (triko) veya tığ işi (kroşe) hariç) | C143: Kilogram
A144: 13.92.12.59.00 | B144: Yatak takımları, çarşafları ve yastık kılıfları, dokuma tekstilden (pamuk, keten veya ramiden olanlar hariç) | C144: Kilogram
A145: 13.92.12.70.00 | B145: Yatak takımları, çarşafları ve yastık kılıfları, dokusuz suni ve sentetik elyaftan (örgü (triko) veya tığ işi (kroşe) hariç) | C145: Kilogram
A146: 13.92.13.30.00 | B146: Masa örtüsü, örgü (triko) veya tığ işi (kroşe) tekstilden | C146: Kilogram
A147: 13.92.13.53.00 | B147: Masa örtüsü, pamuktan (örgü (triko) veya tığ işi (kroşe) hariç) | C147: Kilogram
A148: 13.92.13.55.00 | B148: Masa örtüsü, ketenden (örgü (triko) veya tığ işi (kroşe) hariç) | C148: Kilogram
A149: 13.92.13.59.00 | B149: Masa örtüsü, suni ve sentetik elyaftan ve diğer dokuma veya dokusuz tekstilden (pamuktan veya ketenden olanlar hariç) | C149: Kilogram
A150: 13.92.13.70.00 | B150: Masa örtüsü, dokusuz suni ve sentetik elyaftan | C150: Kilogram
A151: 13.92.14.30.00 | B151: Tuvalet ve mutfakta kullanılan örtüler, pamuklu havlu ve benzeri ilmeği kesilmemiş dokumadan | C151: Kilogram
A152: 13.92.14.50.00 | B152: Tuvalet ve mutfakta kullanılan örtüler, dokuma kumaştan (pamuklu havlu ve benzeri ilmeği kesilmemiş dokuma kumaştan olanlar hariç) | C152: Kilogram
A153: 13.92.14.70.00 | B153: Tuvalet ve mutfakta kullanılan örtüler, dokusuz suni ve sentetik elyaftan | C153: Kilogram
A154: 13.92.15.30.00 | B154: Perdeler ve iç storlar, perde veya yatak saçakları ve farbelaları (örgü (triko) veya tığ işi (kroşe) malzemelerden) | C154: Metrekare
A155: 13.92.15.50.00 | B155: Perdeler ve iç storlar, perde veya yatak saçakları ve farbelaları (dokuma malzemelerden) | C155: Metrekare
A156: 13.92.15.70.00 | B156: Perdeler ve iç storlar, perde veya yatak saçakları ve farbelaları (dokusuz malzemelerden) | C156: Metrekare
A157: 13.92.16.20.00 | B157: Duvar halısı, el dokuması (Goblen, flander, aubusson, beauvais tipinde) ve iğne işi (kanaviçe, çapraz dikiş dahil) | C157: Türk Lirası
A158: 13.92.16.40.00 | B158: Yatak örtüleri (kuştüyü yorgan hariç) | C158: Adet sayısı
A159: 13.92.16.60.00 | B159: Mefruşat ürünleri, mobilya ve minder kaplamaları ile araba koltuklarını kaplamak için olanlar (battaniye, seyahat battaniyesi, yatak takımı, çarşaf vb., yemek takımı, masa örtüsü, peçete vb., tuvalet takımları, mutfak takımları, perde, panjur, fela ve yatak örtüleri ve saçakları hariç) | C159: Türk Lirası
A160: 13.92.16.80.00 | B160: İşlemeye hazır dokuma kumaş ve iplik setleri (halı, duvar halısı, nakışlı masa örtüsü, peçete vb. tekstil ürünleri yapımı için) (perakende satışa hazır). | C160: Türk Lirası
A161: 13.92.21.30.00 | B161: Çuval, torba, çanta ve benzerleri (eşya paketleme amacıyla kullanılanlar), pamuktan olanlar | C161: Kilogram
A162: 13.92.21.50.00 | B162: Çuval, torba, çanta ve benzerleri (eşya paketleme amacıyla kullanılanlar), polietilen veya polipropilen şeritlerden örgü (triko) veya tığ işi (kroşe) olanlar | C162: Kilogram
A163: 13.92.21.70.00 | B163: Çuval, torba, çanta ve benzerleri (eşya paketleme amacıyla kullanılanlar), polietilen veya polipropilen şeritten (örgü (triko) veya tığ işi (kroşe) hariç) | C163: Kilogram
A164: 13.92.21.90.00 | B164: Çuval, torba, çanta ve benzerleri (eşya paketleme amacıyla kullanılanlar), (pamuk, polietilen veya polipropilenden olanlar hariç) | C164: Kilogram
A165: 13.92.22.10.00 | B165: Brandalar, güneşlikler ve storlar (karavan tentesi hariç) | C165: Kilogram
A166: 13.92.22.30.00 | B166: Çadırlar (karavan tentesi dahil) | C166: Kilogram
A167: 13.92.22.50.00 | B167: Yelkenler | C167: Kilogram
A168: 13.92.22.70.00 | B168: Şişme yataklar ve diğer kamp eşyaları (karavan tentesi, çadır ve uyku tulumu hariç) | C168: Kilogram
A169: 13.92.23.00.00 | B169: Paraşütler (yönlendirilebilen paraşütler dahil), rotoşütler, bunların aksam ve parçaları | C169: Kilogram
A170: 13.92.24.93.00 | B170: Kuş tüyü veya gıdık tüyü (ince kuş tüyü) ile doldurulmuş uyku takımları (yorgan, kuş tüyü yorgan, minder, puf, yastık dahil (şilte ve uyku tulumu hariç)) | C170: Adet sayısı
A171: 13.92.24.99.00 | B171: Doldurulmuş uyku takımları (yorgan, kuş tüyü yorgan, minder, puf, yastık dahil (kuş tüyü veya gıdık tüyü (ince kuş tüyü) ile doldurulanlar ile şilte ve uyku tulumu hariç)) | C171: Adet sayısı
A172: 13.92.29.53.00 | B172: Yer bezi, bulaşık bezi, toz bezi vb. temizlik bezleri (dokusuz tekstilden) | C172: Kilogram
A173: 13.92.29.57.00 | B173: Yer bezi, bulaşık bezi, toz bezi vb. temizlik bezleri (dokusuz tekstilden olanlar ile örgü (triko) veya tığ işi (kroşe) olanlar hariç) | C173: Kilogram
A174: 13.92.29.93.00 | B174: Kadın pedleri, tamponlar ve benzeri eşyalar, tekstil malzemelerinden (vatkadan olanlar hariç) | C174: Kilogram
A175: 13.92.29.97.00 | B175: Bebekler için pedler ve bebek bezleri ile benzeri eşyalar, tekstil malzemelerinden (vatkadan olanlar hariç) | C175: Kilogram
A176: 13.92.29.99.00 | B176: Yer bezi, bulaşık bezi, toz bezi vb. temizlik bezleri (örgü (triko) veya tığ işi (kroşe) olanlar); can yeleği, can simidi ve diğer hazır eşyalar (kadın pedleri, çocuk bezleri vb. ürünler hariç) | C176: Kilogram
A177: 13.93.11.00.01 | B177: El halıları, ipekten (düğümlü olanlar) | C177: Metrekare
A178: 13.93.11.00.02 | B178: El halıları, floştan (düğümlü olanlar) | C178: Metrekare
A179: 13.93.11.00.03 | B179: El halıları, yünden (düğümlü olanlar) | C179: Metrekare
A180: 13.93.11.00.04 | B180: Makine halıları (düğümlü olanlar) | C180: Metrekare
A181: 13.93.11.00.91 | B181: Diğer tekstil yer döşemeleri (düğümlü olanlar) | C181: Metrekare
A182: 13.93.11.00.99 | B182: Diğer tekstil malzemelerinden halılar (düğümlü olanlar) (ipek ve yün olanlar ile makine yapımı olanlar hariç) | C182: Metrekare
A183: 13.93.12.00.00 | B183: Halı ve diğer tekstil yer döşemeleri, dokuma (tafting (püsküllü ) veya floklu (tüylü) olanlar hariç) | C183: Metrekare
A184: 13.93.13.00.01 | B184: Halı ve diğer tekstil yer döşemeleri (yün/ince kıldan, tafting (püsküllü)) | C184: Metrekare
A185: 13.93.13.00.02 | B185: Halı ve diğer tekstil yer döşemeleri (naylon/diğer poliamidlerden, baskılı, yüzeyi 1 m2'ye eşit veya küçük karo, tafting (püsküllü)) | C185: Metrekare
A186: 13.93.13.00.03 | B186: Halı ve diğer tekstil yer döşemeleri (naylon/diğer poliamidlerden, baskılı, yüzeyi 1m2'den büyük, tafting (püsküllü)) | C186: Metrekare
A187: 13.93.13.00.04 | B187: Halı ve diğer tekstil yer döşemeleri (naylon/diğer poliamidlerden, baskısız, yüzeyi 1 m2'ye eşit veya küçük karo, tafting (püsküllü)) | C187: Metrekare
A188: 13.93.13.00.05 | B188: Halı ve diğer tekstil yer döşemeleri (naylon/diğer poliamidlerden, baskısız, yüzeyi 1m2'den büyük, tafting (püsküllü)) | C188: Metrekare
A189: 13.93.13.00.06 | B189: Halı ve diğer tekstil yer döşemeleri (polipropilenden, yüzeyi 1 m2'ye eşit veya küçük karo, tafting (püsküllü)) | C189: Metrekare
A190: 13.93.13.00.07 | B190: Halı ve diğer tekstil yer döşemeleri (polipropilenden, yüzeyi 1'den büyük, tafting (püsküllü)) | C190: Metrekare
A191: 13.93.13.00.99 | B191: Diğer sentetik/suni maddeler ile dokumaya elverişli diğer maddelerden karo ve diğer yer kaplamaları (tafting (püsküllü)) | C191: Metrekare
A192: 13.93.19.30.00 | B192: Keçe halı ve diğer keçe tekstil yer döşemeleri (tafting (püsküllü) veya floklu olanlar hariç) | C192: Metrekare
A193: 13.93.19.90.01 | B193: Flok halılar (püskürtme yoluyla yapılan halılar) | C193: Metrekare
A194: 13.93.19.90.02 | B194: Paspas ve yolluklar (dokuma, düğümlü, tafting (püsküllü) ve keçeden olanlar hariç) | C194: Metrekare
A195: 13.93.19.90.99 | B195: Diğer halılar ve diğer tekstil yer kaplamaları (düğümlü, dokuma, tafting (püsküllü), keçeden olanlar hariç) | C195: Metrekare
A196: 13.94.11.30.00 | B196: Kınnap, halat, urgan veya kordon (Sisal veya Agave cinsi diğer tekstil elyaflarından, jütten veya diğer tekstil bitki kabuğu elyaflarından ve sert yaprak elyaflarından) (bağlama ve balyalama kınnapları hariç) | C196: Kilogram
A197: 13.94.11.53.00 | B197: Kınnap, sisalden yapılmış, bağlama veya balyalama (tarımsal amaçlı) için | C197: Kilogram
A198: 13.94.11.55.00 | B198: Kınnap, polietilen veya polipropilenden yapılmış, bağlama veya balyalama (tarımsal amaçlı) için | C198: Kilogram
A199: 13.94.11.60.00 | B199: Halat, urgan veya kordon (polietilenden, polipropilenden, naylondan veya diğer poliamidlerden ya da polyester içeriği > 50,000 desiteks olanlardan, diğer sentetik elyaflardan yapılmış) (bağlama ve balyalama kınnapları hariç) | C199: Kilogram
A200: 13.94.11.70.00 | B200: Kınnap, (polietilenden, polipropilenden, naylondan veya diğer poliamidlerden ya da polyester içeriği ≤ 50,000 desiteks (5 g/m) olanlardan yapılmış), (bağlama ve balyalama kınnapları hariç) | C200: Kilogram
... 187 more rows
